[Event "Campeonato de España Universitario Relámpago"]
[Site "Zaragoza, Spain"]
[Date "2024.04.24"]
[Round "5.5"]
[White "Mkrtchyan, Levon"]
[Black "Quintin Navarro, Alberto"]
[Result "1/2-1/2"]
[TimeControl "3 min + 2 sg"]
[WhiteFideId "13309560"]
[BlackFideId "2292688"]
[WhiteElo "2145"]
[BlackElo "2289"]

1. e4 {[%clk 00:03:02]} {[%emt 00:00:01]} c6 {[%clk 00:03:04]} 2. d4 {[%clk
00:03:03]} d5 3. Nc3 {[%emt 00:00:02]} dxe4 {[%clk 00:03:06]} {[%emt 00:00:01]}
4. Nxe4 {[%clk 00:03:06]} Nf6 {[%clk 00:03:07]} {[%emt 00:00:01]} 5. Nxf6+
{[%clk 00:03:07]} exf6 {[%clk 00:03:08]} 6. c3 {[%clk 00:03:08]} Bd6 {[%clk
00:03:09]} {[%emt 00:00:01]} 7. Bd3 {[%clk 00:03:09]} {[%emt 00:00:01]} O-O
{[%clk 00:03:08]} {[%emt 00:00:02]} 8. Qc2 {[%clk 00:03:10]} Re8+ {[%clk
00:03:09]} {[%emt 00:00:01]} 9. Ne2 {[%clk 00:03:11]} {[%emt 00:00:01]} h5
{[%clk 00:03:10]} 10. O-O {[%clk 00:03:12]} {[%emt 00:00:02]} h4 {[%clk
00:03:05]} {[%emt 00:00:07]} 11. h3 {[%clk 00:03:13]} Nd7 {[%clk 00:03:06]}
{[%emt 00:00:01]} 12. Bd2 {[%clk 00:03:15]} Nf8 {[%clk 00:03:07]} {[%emt
00:00:02]} 13. Rae1 {[%clk 00:03:16]} Bd7 {[%clk 00:03:05]} {[%emt 00:00:04]}
14. f4 {[%clk 00:02:53]} {[%emt 00:00:25]} Qc7 {[%clk 00:02:41]} {[%emt
00:00:26]} 15. f5 {[%clk 00:02:50]} {[%emt 00:00:05]} Re7 {[%clk 00:02:31]}
{[%emt 00:00:12]} 16. c4 {[%clk 00:02:28]} {[%emt 00:00:24]} c5 {[%clk
00:02:26]} {[%emt 00:00:07]} 17. d5 {[%clk 00:02:04]} {[%emt 00:00:26]} Rae8
{[%clk 00:02:24]} {[%emt 00:00:03]} 18. Nc3 {[%clk 00:02:02]} {[%emt 00:00:04]}
Bh2+ {[%clk 00:02:17]} {[%emt 00:00:09]} 19. Kh1 {[%clk 00:02:03]} {[%emt
00:00:02]} Bg3 {[%clk 00:02:18]} 20. Rxe7 {[%clk 00:02:03]} {[%emt 00:00:02]}
Rxe7 {[%clk 00:02:18]} {[%emt 00:00:02]} 21. Ne4 {[%clk 00:01:59]} {[%emt
00:00:06]} Rxe4 {[%clk 00:02:07]} {[%emt 00:00:13]} 22. Bxe4 {[%clk 00:01:59]}
{[%emt 00:00:01]} Nh7 {[%clk 00:01:56]} {[%emt 00:00:14]} 23. Qd3 {[%clk
00:01:43]} {[%emt 00:00:18]} Ng5 {[%clk 00:01:39]} {[%emt 00:00:18]} 24. Bxg5
{[%clk 00:01:44]} {[%emt 00:00:02]} fxg5 {[%clk 00:01:39]} {[%emt 00:00:02]} 25.
f6 {[%clk 00:01:44]} {[%emt 00:00:02]} Qe5 {[%clk 00:01:19]} {[%emt 00:00:22]}
26. Bh7+ {[%clk 00:01:34]} {[%emt 00:00:13]} Kh8 {[%clk 00:01:10]} {[%emt
00:00:11]} 27. fxg7+ {[%clk 00:01:35]} {[%emt 00:00:01]} Kxg7 {[%clk 00:01:11]}
{[%emt 00:00:01]} 28. Bf5 {[%clk 00:01:35]} {[%emt 00:00:01]} Bxf5 {[%clk
00:00:26]} {[%emt 00:00:47]} 29. Qxf5 {[%clk 00:01:36]} {[%emt 00:00:02]} Qe7
{[%clk 00:00:27]} 30. b3 {[%clk 00:01:27]} {[%emt 00:00:11]} Bd6 {[%clk
00:00:26]} {[%emt 00:00:02]} 31. Qf2 {[%clk 00:01:23]} {[%emt 00:00:07]} a6
{[%clk 00:00:18]} {[%emt 00:00:11]} 32. Re1 {[%clk 00:01:22]} {[%emt 00:00:02]}
Qd8 {[%clk 00:00:15]} {[%emt 00:00:04]} 33. Qf5 {[%clk 00:01:22]} {[%emt
00:00:03]} Bf4 {[%clk 00:00:13]} {[%emt 00:00:04]} 34. Re4 {[%clk 00:01:20]}
{[%emt 00:00:04]} Qa5 {[%clk 00:00:11]} {[%emt 00:00:04]} 35. Rxf4 {[%clk
00:01:13]} {[%emt 00:00:09]} gxf4 {[%clk 00:00:11]} {[%emt 00:00:02]} 36. Qxf4
{[%clk 00:01:02]} {[%emt 00:00:12]} Qxa2 {[%clk 00:00:05]} {[%emt 00:00:09]} 37.
Qe5+ {[%clk 00:00:41]} {[%emt 00:00:23]} Kg6 {[%clk 00:00:05]} {[%emt
00:00:02]} 38. Qe4+ {[%clk 00:00:36]} {[%emt 00:00:07]} Kg7 {[%clk 00:00:04]}
{[%emt 00:00:02]} 39. Qe5+ {[%clk 00:00:36]} {[%emt 00:00:02]} Kg6 {[%clk
00:00:06]} 40. d6 {[%clk 00:00:31]} {[%emt 00:00:07]} Qd2 {[%clk 00:00:07]}
{[%emt 00:00:01]} 41. Qe4+ {[%clk 00:00:22]} {[%emt 00:00:11]} Kg7 {[%clk
00:00:08]} {[%emt 00:00:01]} 42. Qg4+ {[%clk 00:00:22]} {[%emt 00:00:02]} Kf8
{[%clk 00:00:05]} {[%emt 00:00:04]} 43. Qc8+ {[%clk 00:00:14]} {[%emt
00:00:10]} Kg7 {[%clk 00:00:07]} 44. Qg4+ Kf8 {[%emt 00:00:02]} 45. Qc8+ {[%clk
00:00:08]} {[%emt 00:00:09]} Kg7 {[%clk 00:00:09]} 46. Qg4+ Kf8 {[%emt
00:00:06]} 1/2-1/2

[ePGN "0.1;DGT LiveChess/2.2.6"]

[Event "Campeonato de España Universitario Relámpago"]
[Site "Zaragoza, Spain"]
[Date "2024.04.24"]
[Round "6.2"]
[White "Fernandez Lopez, Ruben"]
[Black "Quispe Arteaga, Gabriel"]
[Result "1-0"]
[TimeControl "3 min + 2 sg"]
[WhiteFideId "24518298"]
[BlackFideId "32059809"]
[WhiteElo "2262"]
[BlackElo "2304"]

1. e4 {[%clk 00:03:02]} {[%emt 00:07:23]} c5 {[%clk 00:03:02]} {[%emt
00:00:01]} 2. Nc3 {[%clk 00:03:02]} {[%emt 00:00:02]} e6 {[%clk 00:03:02]}
{[%emt 00:00:01]} 3. Nge2 {[%clk 00:03:02]} {[%emt 00:00:01]} Nc6 {[%clk
00:03:02]} {[%emt 00:00:04]} 4. d4 {[%clk 00:03:02]} cxd4 {[%clk 00:03:02]}
{[%emt 00:00:02]} 5. Nxd4 {[%clk 00:03:02]} {[%emt 00:00:01]} Nf6 {[%clk
00:03:02]} 6. Ndb5 {[%clk 00:03:02]} Bb4 {[%clk 00:03:02]} {[%emt 00:00:01]} 7.
a3 {[%clk 00:03:02]} Bxc3+ {[%clk 00:03:02]} 8. Nxc3 {[%clk 00:03:02]} {[%emt
00:00:01]} d5 {[%clk 00:03:02]} 9. exd5 {[%clk 00:03:02]} exd5 {[%clk
00:03:02]} 10. Bd3 {[%clk 00:03:02]} O-O {[%clk 00:03:02]} {[%emt 00:00:02]} 11.
O-O {[%clk 00:03:02]} {[%emt 00:00:01]} d4 {[%clk 00:03:02]} 12. Ne2 {[%clk
00:03:02]} {[%emt 00:00:02]} Bg4 {[%clk 00:03:02]} 13. f3 Bh5 14. Ng3 {[%clk
00:02:37]} {[%emt 00:00:45]} Bg6 {[%clk 00:03:03]} {[%emt 00:00:02]} 15. Bg5
{[%clk 00:02:26]} {[%emt 00:00:13]} Qd6 {[%clk 00:03:04]} {[%emt 00:00:01]} 16.
Qd2 {[%clk 00:01:48]} {[%emt 00:00:40]} Rfe8 {[%clk 00:02:54]} {[%emt
00:00:12]} 17. Rae1 {[%clk 00:01:49]} {[%emt 00:00:01]} Nd5 {[%clk 00:02:48]}
{[%emt 00:00:09]} 18. Ne4 {[%clk 00:01:42]} {[%emt 00:00:09]} Qc7 {[%clk
00:02:13]} {[%emt 00:00:37]} 19. Bc4 {[%clk 00:01:34]} {[%emt 00:00:09]} Nb6
{[%clk 00:02:14]} {[%emt 00:00:01]} 20. Bb3 {[%clk 00:01:30]} {[%emt 00:00:06]}
Kh8 {[%clk 00:01:52]} {[%emt 00:00:24]} 21. Bf4 {[%clk 00:01:27]} {[%emt
00:00:05]} Qd7 {[%clk 00:01:27]} {[%emt 00:00:27]} 22. Nc5 {[%clk 00:01:21]}
{[%emt 00:00:08]} Qf5 {[%clk 00:01:23]} {[%emt 00:00:06]} 23. Nxb7 {[%clk
00:01:19]} {[%emt 00:00:04]} Rxe1 {[%clk 00:01:24]} {[%emt 00:00:01]} 24. Rxe1
{[%clk 00:01:20]} {[%emt 00:00:01]} d3 {[%clk 00:01:25]} 25. cxd3 {[%clk
00:01:14]} {[%emt 00:00:08]} Nd4 {[%clk 00:01:26]} 26. Ba2 {[%clk 00:01:06]}
{[%emt 00:00:11]} h6 {[%clk 00:00:59]} {[%emt 00:00:29]} 27. Kh1 {[%clk
00:00:54]} {[%emt 00:00:14]} Ne6 {[%clk 00:00:50]} {[%emt 00:00:11]} 28. Bxe6
{[%clk 00:00:53]} {[%emt 00:00:03]} fxe6 {[%clk 00:00:51]} {[%emt 00:00:01]} 29.
Be5 {[%clk 00:00:51]} {[%emt 00:00:04]} Kh7 {[%clk 00:00:51]} {[%emt 00:00:02]}
30. d4 {[%clk 00:00:37]} {[%emt 00:00:16]} Nc4 {[%clk 00:00:33]} {[%emt
00:00:20]} 31. Qb4 {[%clk 00:00:36]} {[%emt 00:00:03]} Rc8 {[%clk 00:00:31]}
{[%emt 00:00:04]} 32. Nd6 {[%clk 00:00:35]} {[%emt 00:00:03]} Nxd6 {[%clk
00:00:32]} {[%emt 00:00:01]} 33. Qxd6 {[%clk 00:00:36]} {[%emt 00:00:01]} Rc2
{[%clk 00:00:33]} {[%emt 00:00:01]} 34. Qe7 {[%clk 00:00:33]} {[%emt 00:00:03]}
Bf7 {[%clk 00:00:34]} {[%emt 00:00:02]} 35. b4 {[%clk 00:00:20]} {[%emt
00:00:15]} Qg6 {[%clk 00:00:29]} {[%emt 00:00:07]} 36. Rg1 {[%clk 00:00:22]}
Be8 {[%clk 00:00:23]} {[%emt 00:00:09]} 37. Bxg7 {[%clk 00:00:18]} {[%emt
00:00:06]} Bf7 {[%clk 00:00:24]} 38. Be5 {[%clk 00:00:18]} {[%emt 00:00:02]}
Rc8 {[%clk 00:00:25]} 39. Qxa7 {[%clk 00:00:18]} {[%emt 00:00:02]} Re8 {[%clk
00:00:10]} {[%emt 00:00:17]} 40. Rc1 {[%clk 00:00:18]} {[%emt 00:00:02]} Qf5
{[%clk 00:00:11]} {[%emt 00:00:02]} 41. h3 {[%clk 00:00:18]} {[%emt 00:00:03]}
Rg8 {[%clk 00:00:11]} {[%emt 00:00:01]} 42. Rc7 {[%clk 00:00:18]} {[%emt
00:00:02]} Kg6 {[%clk 00:00:08]} {[%emt 00:00:06]} 43. b5 {[%clk 00:00:15]}
{[%emt 00:00:05]} Qg5 {[%clk 00:00:05]} {[%emt 00:00:05]} 44. Rxf7 {[%clk
00:00:12]} {[%emt 00:00:04]} Kh5 {[%clk 00:00:06]} {[%emt 00:00:01]} 45. Rg7
{[%clk 00:00:06]} {[%emt 00:00:08]} 1-0

[Event "Campeonato de España Universitario Relámpago"]
[Site "Zaragoza, Spain"]
[Date "2024.04.24"]
[Round "6.3"]
[White "Vela Frago, Alberto"]
[Black "Ingunza Curro, Andres"]
[Result "1-0"]
[TimeControl "3 min + 2 sg"]
[WhiteFideId "24531685"]
[BlackFideId "24526371"]
[WhiteElo "2203"]
[BlackElo "2271"]

1. c4 {[%clk 00:03:02]} {[%emt 00:00:18]} e6 {[%clk 00:03:02]} {[%emt
00:00:01]} 2. Nf3 {[%clk 00:03:01]} {[%emt 00:00:17]} d5 {[%clk 00:03:04]}
{[%emt 00:00:02]} 3. g3 {[%clk 00:03:02]} {[%emt 00:00:01]} Nf6 {[%clk
00:03:04]} {[%emt 00:00:01]} 4. Bg2 {[%clk 00:03:03]} dxc4 {[%clk 00:03:05]}
{[%emt 00:00:01]} 5. Qa4+ {[%clk 00:03:01]} {[%emt 00:00:03]} Nbd7 {[%clk
00:03:06]} 6. Qxc4 {[%clk 00:03:01]} {[%emt 00:00:02]} a6 {[%clk 00:03:08]}
{[%emt 00:00:01]} 7. Qc2 {[%clk 00:02:56]} {[%emt 00:00:07]} c5 {[%clk
00:03:08]} {[%emt 00:00:01]} 8. O-O {[%clk 00:02:50]} {[%emt 00:00:08]} Ra7
{[%clk 00:03:03]} {[%emt 00:00:08]} 9. d4 {[%clk 00:02:48]} {[%emt 00:00:04]}
b5 {[%clk 00:03:02]} {[%emt 00:00:03]} 10. Rd1 {[%clk 00:02:45]} {[%emt
00:00:05]} Bb7 {[%clk 00:02:47]} {[%emt 00:00:18]} 11. a4 {[%clk 00:02:45]}
{[%emt 00:00:02]} Be4 {[%clk 00:02:30]} {[%emt 00:00:18]} 12. Qd2 {[%clk
00:02:38]} {[%emt 00:00:09]} Qa8 {[%clk 00:02:07]} {[%emt 00:00:26]} 13. axb5
{[%clk 00:02:33]} {[%emt 00:00:07]} axb5 {[%clk 00:02:08]} {[%emt 00:00:01]} 14.
Rxa7 {[%clk 00:02:34]} {[%emt 00:00:01]} Qxa7 {[%clk 00:02:09]} 15. Nc3 {[%clk
00:02:35]} Bc6 {[%clk 00:02:09]} {[%emt 00:00:01]} 16. Ne5 {[%clk 00:02:21]}
{[%emt 00:00:16]} Bxg2 {[%clk 00:02:05]} {[%emt 00:00:06]} 17. Nxd7 {[%clk
00:02:01]} {[%emt 00:00:21]} Nxd7 {[%clk 00:01:56]} {[%emt 00:00:11]} 18. Kxg2
{[%clk 00:02:01]} {[%emt 00:00:01]} cxd4 {[%clk 00:01:37]} {[%emt 00:00:21]} 19.
Qxd4 {[%clk 00:02:02]} {[%emt 00:00:01]} Qxd4 {[%clk 00:01:10]} {[%emt
00:00:28]} 20. Rxd4 {[%clk 00:02:03]} {[%emt 00:00:02]} Bc5 {[%clk 00:00:39]}
{[%emt 00:00:33]} 21. Rd1 {[%clk 00:02:03]} {[%emt 00:00:01]} b4 {[%clk
00:00:35]} {[%emt 00:00:07]} 22. Ne4 {[%clk 00:01:54]} {[%emt 00:00:10]} Be7
{[%clk 00:00:12]} {[%emt 00:00:25]} 23. Bf4 {[%clk 00:01:53]} {[%emt 00:00:04]}
f5 {[%clk 00:00:10]} {[%emt 00:00:04]} 24. Nd6+ {[%clk 00:01:44]} {[%emt
00:00:10]} Kf8 {[%clk 00:00:10]} {[%emt 00:00:01]} 25. Nxf5 {[%clk 00:01:41]}
{[%emt 00:00:05]} Nf6 {[%clk 00:00:06]} {[%emt 00:00:07]} 26. Nxe7 {[%clk
00:01:40]} {[%emt 00:00:03]} Kxe7 {[%clk 00:00:07]} 27. Bd6+ {[%clk 00:01:41]}
Kf7 {[%clk 00:00:09]} 28. Bxb4 {[%clk 00:01:42]} {[%emt 00:00:02]} Rb8 {[%clk
00:00:09]} {[%emt 00:00:01]} 29. Bc3 {[%clk 00:01:41]} {[%emt 00:00:02]} Nd5
{[%clk 00:00:10]} {[%emt 00:00:01]} 30. Be5 {[%clk 00:01:42]} Rb3 {[%clk
00:00:11]} {[%emt 00:00:02]} 31. e4 {[%clk 00:01:43]} {[%emt 00:00:01]} Ne7
{[%clk 00:00:07]} {[%emt 00:00:06]} 32. Rd7 {[%clk 00:01:42]} {[%emt 00:00:02]}
Ke8 {[%clk 00:00:08]} {[%emt 00:00:01]} 33. Rc7 {[%clk 00:01:41]} {[%emt
00:00:03]} g6 {[%clk 00:00:06]} {[%emt 00:00:05]} 34. Bf6 {[%clk 00:01:19]}
{[%emt 00:00:24]} Ng8 {[%clk 00:00:06]} {[%emt 00:00:01]} 35. Bc3 {[%clk
00:01:20]} Ne7 {[%clk 00:00:03]} {[%emt 00:00:05]} 36. Bf6 {[%clk 00:01:14]}
{[%emt 00:00:08]} Ng8 {[%clk 00:00:04]} 37. Be5 {[%clk 00:01:15]} h5 {[%clk
00:00:03]} {[%emt 00:00:04]} 38. Rg7 {[%clk 00:01:13]} {[%emt 00:00:03]} Ne7
{[%clk 00:00:03]} {[%emt 00:00:02]} 39. Bd6 {[%clk 00:01:14]} Nc6 {[%clk
00:00:05]} {[%emt 00:00:02]} 40. Rc7 {[%clk 00:01:10]} {[%emt 00:00:06]} Nd4
{[%clk 00:00:04]} {[%emt 00:00:03]} 41. Bc5 {[%clk 00:00:59]} {[%emt 00:00:13]}
Nf3 {[%emt 00:00:05]} 42. Re7+ {[%clk 00:00:57]} {[%emt 00:00:02]} 1-0

[Event "Campeonato de España Universitario Relámpago"]
[Site "Zaragoza, Spain"]
[Date "2024.04.24"]
[Round "6.4"]
[White "Luque Saiz, Andres"]
[Black "Khudov, Oleksandr"]
[Result "1-0"]
[TimeControl "3 min + 2 sg"]
[WhiteFideId "24510793"]
[BlackFideId "14176432"]
[WhiteElo "2346"]
[BlackElo "2125"]

1. e4 {[%clk 00:03:03]} e6 {[%clk 00:03:04]} 2. d4 {[%emt 00:00:04]} d5 3. Nd2
{[%clk 00:03:03]} c5 {[%clk 00:03:06]} {[%emt 00:00:02]} 4. Ngf3 {[%clk
00:03:03]} {[%emt 00:00:01]} Nc6 {[%clk 00:03:06]} {[%emt 00:00:02]} 5. exd5
{[%clk 00:03:04]} {[%emt 00:00:01]} Qxd5 {[%clk 00:03:07]} 6. Bc4 {[%clk
00:03:02]} {[%emt 00:00:04]} Qd8 {[%clk 00:03:08]} 7. dxc5 {[%clk 00:02:54]}
{[%emt 00:00:11]} Bxc5 {[%clk 00:03:09]} 8. O-O {[%clk 00:02:53]} {[%emt
00:00:03]} Nf6 {[%clk 00:03:10]} {[%emt 00:00:01]} 9. Qe2 {[%clk 00:02:48]}
{[%emt 00:00:07]} O-O {[%clk 00:03:10]} {[%emt 00:00:02]} 10. Ne4 {[%clk
00:02:39]} {[%emt 00:00:11]} Be7 {[%clk 00:03:09]} {[%emt 00:00:03]} 11. c3
{[%clk 00:02:25]} {[%emt 00:00:16]} a6 {[%clk 00:03:04]} {[%emt 00:00:06]} 12.
Bf4 {[%clk 00:02:23]} {[%emt 00:00:05]} b5 {[%clk 00:02:48]} {[%emt 00:00:18]}
13. Bd3 {[%clk 00:02:22]} {[%emt 00:00:02]} Bb7 {[%clk 00:02:49]} {[%emt
00:00:01]} 14. Nfg5 {[%clk 00:01:47]} {[%emt 00:00:37]} h6 {[%clk 00:02:44]}
{[%emt 00:00:07]} 15. Nxf6+ {[%clk 00:01:44]} {[%emt 00:00:06]} Bxf6 {[%clk
00:02:43]} {[%emt 00:00:03]} 16. Nh7 {[%clk 00:01:02]} {[%emt 00:00:44]} Re8
{[%clk 00:02:44]} {[%emt 00:00:02]} 17. Rad1 {[%clk 00:01:01]} {[%emt
00:00:03]} Qe7 {[%clk 00:02:27]} {[%emt 00:00:18]} 18. Bb1 {[%clk 00:00:32]}
{[%emt 00:00:32]} e5 {[%clk 00:01:50]} {[%emt 00:00:39]} 19. Nxf6+ {[%clk
00:00:26]} {[%emt 00:00:08]} Qxf6 {[%clk 00:01:51]} {[%emt 00:00:02]} 20. Be3
{[%clk 00:00:26]} {[%emt 00:00:02]} Rad8 {[%clk 00:01:40]} {[%emt 00:00:12]} 21.
Qg4 {[%clk 00:00:26]} {[%emt 00:00:02]} Na5 {[%clk 00:01:17]} {[%emt 00:00:25]}
22. Qf5 {[%clk 00:00:10]} {[%emt 00:00:18]} Qxf5 {[%clk 00:01:10]} {[%emt
00:00:09]} 23. Bxf5 {[%clk 00:00:11]} Nc4 {[%clk 00:01:07]} {[%emt 00:00:05]}
24. Bc1 {[%clk 00:00:12]} {[%emt 00:00:01]} g6 {[%clk 00:00:54]} {[%emt
00:00:14]} 25. Bc2 {[%clk 00:00:12]} {[%emt 00:00:03]} Kg7 {[%clk 00:00:53]}
{[%emt 00:00:03]} 26. b3 {[%clk 00:00:12]} {[%emt 00:00:02]} Nb6 {[%clk
00:00:48]} {[%emt 00:00:07]} 27. Rxd8 {[%clk 00:00:10]} {[%emt 00:00:04]} Rxd8
{[%clk 00:00:49]} {[%emt 00:00:01]} 28. Rd1 {[%clk 00:00:11]} Rxd1+ {[%clk
00:00:45]} {[%emt 00:00:06]} 29. Bxd1 {[%clk 00:00:13]} {[%emt 00:00:01]} f5
{[%clk 00:00:44]} {[%emt 00:00:03]} 30. Kf1 {[%clk 00:00:14]} g5 {[%clk
00:00:44]} {[%emt 00:00:02]} 31. g3 {[%clk 00:00:09]} {[%emt 00:00:07]} Kf6
{[%clk 00:00:42]} {[%emt 00:00:04]} 32. Ke2 {[%clk 00:00:09]} {[%emt 00:00:02]}
Bc6 {[%clk 00:00:29]} {[%emt 00:00:15]} 33. Kd2 {[%clk 00:00:10]} {[%emt
00:00:01]} e4 {[%clk 00:00:26]} {[%emt 00:00:04]} 34. Bb2 {[%clk 00:00:10]}
{[%emt 00:00:02]} Ke6 {[%clk 00:00:25]} {[%emt 00:00:03]} 35. Be2 {[%clk
00:00:11]} {[%emt 00:00:01]} Bd5 {[%clk 00:00:24]} {[%emt 00:00:03]} 36. Ba3
{[%clk 00:00:12]} {[%emt 00:00:02]} f4 {[%clk 00:00:20]} {[%emt 00:00:05]} 37.
Bc5 {[%clk 00:00:12]} {[%emt 00:00:01]} f3 {[%clk 00:00:14]} {[%emt 00:00:09]}
38. Bf1 {[%clk 00:00:11]} {[%emt 00:00:04]} Nc4+ {[%clk 00:00:05]} {[%emt
00:00:11]} 39. bxc4 {[%clk 00:00:09]} {[%emt 00:00:04]} bxc4 {[%clk 00:00:06]}
{[%emt 00:00:01]} 40. Ke3 {[%clk 00:00:09]} {[%emt 00:00:01]} Ke5 {[%clk
00:00:08]} 41. Ba7 {[%clk 00:00:10]} {[%emt 00:00:01]} Be6 {[%clk 00:00:07]}
{[%emt 00:00:03]} 42. Bd4+ {[%clk 00:00:09]} {[%emt 00:00:03]} Kd5 {[%clk
00:00:07]} {[%emt 00:00:02]} 43. Bg7 {[%clk 00:00:10]} {[%emt 00:00:01]} h5
{[%clk 00:00:08]} 44. Bf6 {[%clk 00:00:11]} {[%emt 00:00:01]} g4 {[%clk
00:00:09]} 45. Kf4 {[%clk 00:00:12]} Bf7 {[%clk 00:00:09]} {[%emt 00:00:02]} 46.
Be7 {[%clk 00:00:11]} {[%emt 00:00:03]} Be8 {[%clk 00:00:07]} {[%emt 00:00:04]}
47. Bf6 {[%clk 00:00:12]} {[%emt 00:00:02]} Bf7 {[%clk 00:00:08]} 48. Bd4
{[%clk 00:00:13]} Be8 {[%clk 00:00:09]} {[%emt 00:00:03]} 49. Kf5 {[%clk
00:00:13]} {[%emt 00:00:02]} Bf7 {[%clk 00:00:09]} {[%emt 00:00:02]} 50. Kf6
{[%clk 00:00:14]} Be8 {[%clk 00:00:10]} 51. Ke7 {[%clk 00:00:15]} {[%emt
00:00:02]} Bg6 {[%clk 00:00:11]} {[%emt 00:00:01]} 52. Kd7 {[%clk 00:00:15]}
{[%emt 00:00:02]} Bf7 {[%clk 00:00:05]} {[%emt 00:00:07]} 53. Ke7 {[%clk
00:00:16]} Bg6 {[%clk 00:00:06]} {[%emt 00:00:01]} 54. Kf8 {[%clk 00:00:13]}
{[%emt 00:00:06]} Bf5 {[%clk 00:00:05]} {[%emt 00:00:03]} 55. Kf7 {[%clk
00:00:14]} {[%emt 00:00:01]} Bd7 {[%clk 00:00:06]} 56. Ke7 {[%clk 00:00:15]}
Bf5 {[%clk 00:00:05]} {[%emt 00:00:03]} 57. Kd8 {[%clk 00:00:11]} {[%emt
00:00:06]} Bg6 {[%clk 00:00:04]} {[%emt 00:00:02]} 58. Kc7 {[%clk 00:00:12]}
Be8 {[%clk 00:00:06]} 59. Kb6 {[%clk 00:00:13]} {[%emt 00:00:02]} Bb5 {[%clk
00:00:05]} {[%emt 00:00:02]} 60. Ka5 {[%clk 00:00:14]} Be8 {[%clk 00:00:04]}
{[%emt 00:00:03]} 61. Kb4 {[%clk 00:00:15]} {[%emt 00:00:01]} Bb5 {[%clk
00:00:04]} {[%emt 00:00:02]} 62. a4 {[%clk 00:00:17]} Bc6 {[%clk 00:00:06]} 63.
Bxc4+ {[%emt 00:00:01]} Kd6 64. Bxa6 {[%clk 00:00:19]} {[%emt 00:00:01]} Bd5
{[%clk 00:00:08]} 65. Bc4 {[%clk 00:00:19]} {[%emt 00:00:01]} Bc6 {[%clk
00:00:09]} 66. Bf7 {[%emt 00:00:21]} 1-0